[Event "Titled Tuesday Blitz April 26 Early 2022"]
[White "Popadic, Dragan"]
[Black "Ning, Kaiyu"]
[WhiteFideId "913650"]
[BlackFideId "8614750"]
[WhiteElo "2203"]
[BlackElo "2013"]
[Result "1-0"]
[Round "01"]
[TimeControl "180+1"]
[Date "2022.04.26"]
[WhiteClock "0:01:11"]
[BlackClock "0:00:17"]

1. e4 {[%clk 0:02:59]}  c5 {[%clk 0:02:56]} 2. Nc3 {[%clk 0:02:59]}  d6 {[%clk 0:02:56]} 3. f4 {[%clk 0:02:58]}  Nc6 {[%clk 0:02:30]} 4. Nf3 {[%clk 0:02:58]}  g6 {[%clk 0:02:30]} 5. Bc4 {[%clk 0:02:57]}  Bg7 {[%clk 0:02:30]} 6. d3 {[%clk 0:02:58]}  e6 {[%clk 0:02:22]} 7. O-O {[%clk 0:02:57]}  Nge7 {[%clk 0:02:22]} 8. Qe1 {[%clk 0:02:57]}  O-O {[%clk 0:02:22]} 9. f5 {[%clk 0:02:57]}  gxf5 {[%clk 0:02:16]} 10. Qh4 {[%clk 0:02:56]}  f6 {[%clk 0:01:34]} 11. Bh6 {[%clk 0:02:52]}  Ng6 {[%clk 0:01:22]} 12. Qh5 {[%clk 0:02:52]}  fxe4 {[%clk 0:01:12]} 13. dxe4 {[%clk 0:02:51]}  Qe7 {[%clk 0:00:49]} 14. Rad1 {[%clk 0:02:38]}  a6 {[%clk 0:00:46]} 15. Bxg7 {[%clk 0:02:36]}  Kxg7 {[%clk 0:00:46]} 16. a4 {[%clk 0:02:35]}  Bd7 {[%clk 0:00:43]} 17. Rf2 {[%clk 0:02:18]}  Rf7 {[%clk 0:00:34]} 18. Rfd2 {[%clk 0:02:05]}  Nce5 {[%clk 0:00:27]} 19. Nxe5 {[%clk 0:01:49]}  Nxe5 {[%clk 0:00:26]} 20. Be2 {[%clk 0:01:49]}  Nc6 {[%clk 0:00:24]} 21. Rxd6 {[%clk 0:01:27]}  Nd4 {[%clk 0:00:24]} 22. Qxc5 {[%clk 0:01:27]}  e5 {[%clk 0:00:25]} 23. Bh5 {[%clk 0:01:13]}  Rc8 {[%clk 0:00:19]} 24. Qd5 {[%clk 0:01:12]}  Rff8 {[%clk 0:00:17]} 25. Rxd7 {[%clk 0:01:11]} 1-0


[Site "https://www.chess.com"]

[Event "Titled Tuesday Blitz April 26 Early 2022"]
[White "Prieto Aranguren, Alain"]
[Black "Karavade, Eesha"]
[WhiteFideId "2268906"]
[BlackFideId "5012600"]
[WhiteElo "2235"]
[BlackElo "2258"]
[Result "0-1"]
[Round "01"]
[TimeControl "180+1"]
[Date "2022.04.26"]
[WhiteClock "0:00:45"]
[BlackClock "0:01:14"]

1. d4 {[%clk 0:03:00]}  Nf6 {[%clk 0:02:57]} 2. Bg5 {[%clk 0:02:59]}  d5 {[%clk 0:02:55]} 3. Nd2 {[%clk 0:02:56]}  e6 {[%clk 0:02:51]} 4. e3 {[%clk 0:02:56]}  c5 {[%clk 0:02:51]} 5. c3 {[%clk 0:02:56]}  Nc6 {[%clk 0:02:50]} 6. Bd3 {[%clk 0:02:55]}  Be7 {[%clk 0:02:49]} 7. Ngf3 {[%clk 0:02:55]}  h6 {[%clk 0:02:43]} 8. Bh4 {[%clk 0:02:54]}  cxd4 {[%clk 0:02:36]} 9. exd4 {[%clk 0:02:53]}  Nh5 {[%clk 0:02:35]} 10. Bxe7 {[%clk 0:02:53]}  Qxe7 {[%clk 0:02:22]} 11. g3 {[%clk 0:02:53]}  O-O {[%clk 0:02:18]} 12. O-O {[%clk 0:02:53]}  f5 {[%clk 0:02:18]} 13. Re1 {[%clk 0:02:49]}  f4 {[%clk 0:02:14]} 14. Ne5 {[%clk 0:02:46]}  fxg3 {[%clk 0:02:12]} 15. fxg3 {[%clk 0:02:32]}  Qg5 {[%clk 0:02:07]} 16. Ndf3 {[%clk 0:02:23]}  Qf6 {[%clk 0:02:05]} 17. Qe2 {[%clk 0:02:15]}  Ne7 {[%clk 0:02:00]} 18. Rf1 {[%clk 0:02:10]}  Nf5 {[%clk 0:01:53]} 19. g4 {[%clk 0:02:08]}  Nf4 {[%clk 0:01:52]} 20. Qd2 {[%clk 0:01:56]}  Nd6 {[%clk 0:01:40]} 21. Bc2 {[%clk 0:01:47]}  Ne4 {[%clk 0:01:33]} 22. Bxe4 {[%clk 0:01:46]}  dxe4 {[%clk 0:01:33]} 23. Qe3 {[%clk 0:01:45]}  exf3 {[%clk 0:01:31]} 24. Rxf3 {[%clk 0:01:43]}  b6 {[%clk 0:01:27]} 25. Raf1 {[%clk 0:01:41]}  g5 {[%clk 0:01:27]} 26. Qe4 {[%clk 0:01:29]}  Rb8 {[%clk 0:01:26]} 27. c4 {[%clk 0:01:20]}  Bb7 {[%clk 0:01:24]} 28. d5 {[%clk 0:01:20]}  exd5 {[%clk 0:01:24]} 29. cxd5 {[%clk 0:01:11]}  Rbe8 {[%clk 0:01:24]} 30. Rxf4 {[%clk 0:00:52]}  gxf4 {[%clk 0:01:22]} 31. Rxf4 {[%clk 0:00:46]}  Qxf4 {[%clk 0:01:15]} 32. Qg6+ {[%clk 0:00:45]}  Kh8 {[%clk 0:01:14]} 0-1


[Site "https://www.chess.com"]

[Event "Titled Tuesday Blitz April 26 Early 2022"]
[White "Prohorov, Olexandr"]
[Black "Pap, Gyula"]
[WhiteFideId "14105578"]
[BlackFideId "725323"]
[WhiteElo "1993"]
[BlackElo "2553"]
[Result "0-1"]
[Round "01"]
[TimeControl "180+1"]
[Date "2022.04.26"]
[WhiteClock "0:01:03"]
[BlackClock "0:01:42"]

1. e4 {[%clk 0:02:52]}  c6 {[%clk 0:02:59]} 2. d4 {[%clk 0:02:50]}  d5 {[%clk 0:03:00]} 3. e5 {[%clk 0:02:50]}  Bf5 {[%clk 0:02:59]} 4. Nf3 {[%clk 0:02:50]}  e6 {[%clk 0:02:59]} 5. Be2 {[%clk 0:02:48]}  Nd7 {[%clk 0:02:59]} 6. O-O {[%clk 0:02:48]}  Bg6 {[%clk 0:03:00]} 7. Be3 {[%clk 0:02:44]}  Nh6 {[%clk 0:03:00]} 8. Ne1 {[%clk 0:02:25]}  Nf5 {[%clk 0:02:58]} 9. Nd3 {[%clk 0:02:21]}  Be7 {[%clk 0:02:56]} 10. a4 {[%clk 0:02:14]}  O-O {[%clk 0:02:55]} 11. a5 {[%clk 0:02:12]}  Rc8 {[%clk 0:02:54]} 12. g4 {[%clk 0:02:09]}  Nxe3 {[%clk 0:02:50]} 13. fxe3 {[%clk 0:02:09]}  f6 {[%clk 0:02:48]} 14. exf6 {[%clk 0:02:05]}  Bxf6 {[%clk 0:02:46]} 15. Nf4 {[%clk 0:02:04]}  Bg5 {[%clk 0:02:39]} 16. Bd3 {[%clk 0:01:57]}  Bxd3 {[%clk 0:02:34]} 17. Qxd3 {[%clk 0:01:57]}  e5 {[%clk 0:02:35]} 18. Ne6 {[%clk 0:01:54]}  Rxf1+ {[%clk 0:02:34]} 19. Qxf1 {[%clk 0:01:39]}  Bxe3+ {[%clk 0:02:32]} 20. Kh1 {[%clk 0:01:39]}  Qe7 {[%clk 0:02:27]} 21. Qf3 {[%clk 0:01:23]}  Qxe6 {[%clk 0:02:21]} 22. Qxe3 {[%clk 0:01:22]}  Qxg4 {[%clk 0:02:22]} 23. dxe5 {[%clk 0:01:18]}  Qd1+ {[%clk 0:02:20]} 24. Kg2 {[%clk 0:01:17]}  Rf8 {[%clk 0:02:00]} 25. e6 {[%clk 0:01:10]}  Qf1+ {[%clk 0:01:59]} 26. Kg3 {[%clk 0:01:09]}  Nf6 {[%clk 0:01:55]} 27. e7 {[%clk 0:01:08]}  Ne4+ {[%clk 0:01:52]} 28. Kg4 {[%clk 0:01:06]}  Qf5+ {[%clk 0:01:41]} 29. Kh4 {[%clk 0:01:05]}  g5+ {[%clk 0:01:41]} 30. Kh5 {[%clk 0:01:04]}  Nf6+ {[%clk 0:01:41]} 31. Kh6 {[%clk 0:01:03]}  Qg6# {[%clk 0:01:42]} 0-1


[Site "https://www.chess.com"]

[Event "Titled Tuesday Blitz April 26 Early 2022"]
[White "Redor, Menandro"]
[Black "Belozerov, Andrei"]
[WhiteFideId "5222010"]
[BlackFideId "4120213"]
[WhiteElo "1986"]
[BlackElo "2320"]
[Result "0-1"]
[Round "01"]
[TimeControl "180+1"]
[Date "2022.04.26"]
[WhiteClock "0:00:11"]
[BlackClock "0:00:32"]

1. d4 {[%clk 0:02:59]}  d5 {[%clk 0:02:58]} 2. c4 {[%clk 0:02:52]}  c6 {[%clk 0:02:58]} 3. Nc3 {[%clk 0:02:52]}  Nf6 {[%clk 0:02:58]} 4. Nf3 {[%clk 0:02:46]}  dxc4 {[%clk 0:02:58]} 5. a4 {[%clk 0:02:44]}  Bf5 {[%clk 0:02:57]} 6. e3 {[%clk 0:02:41]}  e6 {[%clk 0:02:57]} 7. Bxc4 {[%clk 0:02:40]}  Bb4 {[%clk 0:02:58]} 8. O-O {[%clk 0:02:31]}  O-O {[%clk 0:02:58]} 9. Nh4 {[%clk 0:02:29]}  Nbd7 {[%clk 0:02:56]} 10. Nxf5 {[%clk 0:02:28]}  exf5 {[%clk 0:02:57]} 11. Bd2 {[%clk 0:02:25]}  Qe7 {[%clk 0:02:45]} 12. a5 {[%clk 0:02:19]}  b5 {[%clk 0:02:37]} 13. Bb3 {[%clk 0:02:16]}  g6 {[%clk 0:02:24]} 14. Qf3 {[%clk 0:02:11]}  Rac8 {[%clk 0:02:18]} 15. Rfd1 {[%clk 0:02:05]}  a6 {[%clk 0:02:14]} 16. d5 {[%clk 0:01:56]}  Ne5 {[%clk 0:02:03]} 17. Qf4 {[%clk 0:01:47]}  Bd6 {[%clk 0:01:42]} 18. Qh4 {[%clk 0:01:23]}  c5 {[%clk 0:01:35]} 19. e4 {[%clk 0:01:13]}  Nxe4 {[%clk 0:01:20]} 20. Qxe7 {[%clk 0:01:09]}  Bxe7 {[%clk 0:01:20]} 21. Nxe4 {[%clk 0:01:07]}  fxe4 {[%clk 0:00:39]} 22. Re1 {[%clk 0:01:05]}  f5 {[%clk 0:00:38]} 23. d6+ {[%clk 0:01:04]}  c4 {[%clk 0:00:38]} 24. dxe7 {[%clk 0:01:04]}  Rfe8 {[%clk 0:00:39]} 25. Bc2 {[%clk 0:01:03]}  Rxe7 {[%clk 0:00:39]} 26. Bc3 {[%clk 0:01:02]}  Nd3 {[%clk 0:00:38]} 27. Bxd3 {[%clk 0:01:02]}  cxd3 {[%clk 0:00:39]} 28. Red1 {[%clk 0:01:01]}  Kf7 {[%clk 0:00:39]} 29. g3 {[%clk 0:01:01]}  Ke6 {[%clk 0:00:39]} 30. Rac1 {[%clk 0:01:00]}  Kd5 {[%clk 0:00:39]} 31. Bd2 {[%clk 0:00:56]}  Rec7 {[%clk 0:00:39]} 32. Kf1 {[%clk 0:00:52]}  Rc2 {[%clk 0:00:37]} 33. Ke1 {[%clk 0:00:47]}  Kc4 {[%clk 0:00:34]} 34. Bc3 {[%clk 0:00:42]}  Kb3 {[%clk 0:00:33]} 35. Rxc2 {[%clk 0:00:35]}  dxc2 {[%clk 0:00:32]} 36. Rc1 {[%clk 0:00:35]}  Rxc3 {[%clk 0:00:31]} 37. bxc3 {[%clk 0:00:35]}  Kxc3 {[%clk 0:00:32]} 38. Ra1 {[%clk 0:00:17]}  b4 {[%clk 0:00:32]} 39. f3 {[%clk 0:00:11]}  b3 {[%clk 0:00:32]} 0-1


[Site "https://www.chess.com"]

[Event "Titled Tuesday Blitz April 26 Early 2022"]
[White "Rottenwohrer Suarez, Juan"]
[Black "Tanenbaum, Zachary"]
[WhiteFideId "32068182"]
[BlackFideId "2060850"]
[WhiteElo "2158"]
[BlackElo "2168"]
[Result "0-1"]
[Round "01"]
[TimeControl "180+1"]
[Date "2022.04.26"]
[WhiteClock "0:00:04"]
[BlackClock "0:00:10"]

1. Nf3 {[%clk 0:03:00]}  d5 {[%clk 0:01:45]} 2. g3 {[%clk 0:02:58]}  Nf6 {[%clk 0:01:45]} 3. Bg2 {[%clk 0:02:59]}  c6 {[%clk 0:01:45]} 4. O-O {[%clk 0:02:59]}  Bf5 {[%clk 0:01:45]} 5. d3 {[%clk 0:02:58]}  Nbd7 {[%clk 0:01:44]} 6. c4 {[%clk 0:02:58]}  dxc4 {[%clk 0:01:43]} 7. dxc4 {[%clk 0:02:58]}  e5 {[%clk 0:01:44]} 8. Nc3 {[%clk 0:02:57]}  Be7 {[%clk 0:01:43]} 9. b3 {[%clk 0:02:39]}  O-O {[%clk 0:01:43]} 10. Bb2 {[%clk 0:02:39]}  Qc7 {[%clk 0:01:39]} 11. h3 {[%clk 0:02:37]}  a5 {[%clk 0:01:39]} 12. g4 {[%clk 0:02:35]}  Bg6 {[%clk 0:01:37]} 13. Nh4 {[%clk 0:02:32]}  Rfd8 {[%clk 0:01:36]} 14. Nxg6 {[%clk 0:02:32]}  hxg6 {[%clk 0:01:37]} 15. Qc2 {[%clk 0:02:32]}  Nc5 {[%clk 0:01:36]} 16. Rad1 {[%clk 0:02:28]}  Nh7 {[%clk 0:01:33]} 17. Ne4 {[%clk 0:02:20]}  Nxe4 {[%clk 0:01:32]} 18. Qxe4 {[%clk 0:02:21]}  Bf6 {[%clk 0:01:23]} 19. Qc2 {[%clk 0:02:12]}  Ng5 {[%clk 0:01:22]} 20. Rxd8+ {[%clk 0:02:10]}  Rxd8 {[%clk 0:01:22]} 21. Rd1 {[%clk 0:02:11]}  Ne6 {[%clk 0:01:19]} 22. e3 {[%clk 0:02:07]}  Nc5 {[%clk 0:01:05]} 23. Bc3 {[%clk 0:01:52]}  Rxd1+ {[%clk 0:00:46]} 24. Qxd1 {[%clk 0:01:51]}  Qd8 {[%clk 0:00:47]} 25. Qxd8+ {[%clk 0:01:46]}  Bxd8 {[%clk 0:00:48]} 26. Bxe5 {[%clk 0:01:47]}  Nd3 {[%clk 0:00:49]} 27. Bc3 {[%clk 0:00:43]}  Nc1 {[%clk 0:00:45]} 28. Bf1 {[%clk 0:00:43]}  Nxa2 {[%clk 0:00:44]} 29. Bd2 {[%clk 0:00:44]}  b6 {[%clk 0:00:34]} 30. f4 {[%clk 0:00:42]}  Be7 {[%clk 0:00:25]} 31. Bg2 {[%clk 0:00:38]}  c5 {[%clk 0:00:21]} 32. e4 {[%clk 0:00:37]}  Bh4 {[%clk 0:00:12]} 33. Kf1 {[%clk 0:00:32]}  f6 {[%clk 0:00:11]} 34. Ke2 {[%clk 0:00:22]}  g5 {[%clk 0:00:10]} 35. e5 {[%clk 0:00:15]}  gxf4 {[%clk 0:00:09]} 36. Bxf4 {[%clk 0:00:16]}  fxe5 {[%clk 0:00:08]} 37. Bxe5 {[%clk 0:00:17]}  Nc1+ {[%clk 0:00:08]} 38. Kd1 {[%clk 0:00:07]}  Nxb3 {[%clk 0:00:09]} 39. Bc6 {[%clk 0:00:07]}  Bf6 {[%clk 0:00:08]} 40. Bc7 {[%clk 0:00:06]}  Nd4 {[%clk 0:00:08]} 41. Bd5+ {[%clk 0:00:05]}  Kf8 {[%clk 0:00:08]} 42. Bxb6 {[%clk 0:00:06]}  Nb3 {[%clk 0:00:05]} 43. Kc2 {[%clk 0:00:04]}  a4 {[%clk 0:00:05]} 44. Bc6 {[%clk 0:00:02]}  Nd4+ {[%clk 0:00:06]} 45. Kb2 {[%clk 0:00:02]}  Nxc6+ {[%clk 0:00:07]} 46. Ka3 {[%clk 0:00:02]}  Bd4 {[%clk 0:00:07]} 47. Kxa4 {[%clk 0:00:01]}  Ke7 {[%clk 0:00:08]} 48. Kb5 {[%clk 0:00:02]}  Kd6 {[%clk 0:00:08]} 49. Ba5 {[%clk 0:00:02]}  Nxa5 {[%clk 0:00:08]} 50. Kxa5 {[%clk 0:00:03]}  g5 {[%clk 0:00:09]} 51. Kb5 {[%clk 0:00:03]}  Bf2 {[%clk 0:00:09]} 52. Kb6 {[%clk 0:00:03]}  Ke5 {[%clk 0:00:10]} 53. Kc6 {[%clk 0:00:04]}  Kd4 {[%clk 0:00:10]} 54. Kd6 {[%clk 0:00:04]}  Kxc4 {[%clk 0:00:10]} 0-1


[Site "https://www.chess.com"]

[Event "Titled Tuesday Blitz April 26 Early 2022"]
[White "Rozman, Levy"]
[Black "Kaminski, Victor"]
[WhiteFideId "2039877"]
[BlackFideId "1131630"]
[WhiteElo "2376"]
[BlackElo "2181"]
[Result "0-1"]
[Round "01"]
[TimeControl "180+1"]
[Date "2022.04.26"]
[WhiteClock "0:00:18"]
[BlackClock "0:00:03"]

1. d4 {[%clk 0:03:00]}  Nf6 {[%clk 0:02:57]} 2. Nc3 {[%clk 0:03:00]}  d6 {[%clk 0:02:51]} 3. e4 {[%clk 0:02:59]}  Nbd7 {[%clk 0:02:51]} 4. Bg5 {[%clk 0:02:59]}  e5 {[%clk 0:02:49]} 5. Nge2 {[%clk 0:02:59]}  Be7 {[%clk 0:02:47]} 6. Qd3 {[%clk 0:02:53]}  O-O {[%clk 0:02:43]} 7. h3 {[%clk 0:02:50]}  h6 {[%clk 0:02:36]} 8. Bxf6 {[%clk 0:02:46]}  Bxf6 {[%clk 0:02:30]} 9. O-O-O {[%clk 0:02:46]}  exd4 {[%clk 0:02:17]} 10. Nxd4 {[%clk 0:02:43]}  Nc5 {[%clk 0:02:18]} 11. Qc4 {[%clk 0:02:36]}  a6 {[%clk 0:02:12]} 12. f3 {[%clk 0:02:20]}  b5 {[%clk 0:02:04]} 13. Qe2 {[%clk 0:02:20]}  Bd7 {[%clk 0:01:58]} 14. Kb1 {[%clk 0:02:21]}  b4 {[%clk 0:01:57]} 15. Nd5 {[%clk 0:02:21]}  Rb8 {[%clk 0:01:52]} 16. g4 {[%clk 0:02:15]}  a5 {[%clk 0:01:29]} 17. h4 {[%clk 0:02:13]}  b3 {[%clk 0:01:24]} 18. cxb3 {[%clk 0:02:09]}  a4 {[%clk 0:01:04]} 19. b4 {[%clk 0:02:09]}  Ne6 {[%clk 0:01:04]} 20. Nf5 {[%clk 0:02:01]}  a3 {[%clk 0:00:14]} 21. g5 {[%clk 0:01:50]}  Bxb2 {[%clk 0:00:11]} 22. gxh6 {[%clk 0:01:47]}  g6 {[%clk 0:00:11]} 23. Rg1 {[%clk 0:01:47]}  Kh7 {[%clk 0:00:10]} 24. Nfe3 {[%clk 0:01:45]}  c6 {[%clk 0:00:09]} 25. h5 {[%clk 0:01:38]}  cxd5 {[%clk 0:00:08]} 26. Nxd5 {[%clk 0:01:39]}  Bc6 {[%clk 0:00:06]} 27. Qc2 {[%clk 0:01:31]}  Bxd5 {[%clk 0:00:05]} 28. exd5 {[%clk 0:01:32]}  Nf4 {[%clk 0:00:03]} 29. Bd3 {[%clk 0:01:15]}  Qf6 {[%clk 0:00:03]} 30. b5 {[%clk 0:01:09]}  Rg8 {[%clk 0:00:02]} 31. Rg4 {[%clk 0:01:10]}  Rb7 {[%clk 0:00:01]} 32. hxg6+ {[%clk 0:01:05]}  fxg6 {[%clk 0:00:01]} 33. Rdg1 {[%clk 0:01:06]}  Ba1 {[%clk 0:00:01]} 34. Be4 {[%clk 0:00:54]}  Rxb5+ {[%clk 0:00:01]} 35. Kc1 {[%clk 0:00:54]}  Bb2+ {[%clk 0:00:01]} 36. Kd1 {[%clk 0:00:55]}  Rc5 {[%clk 0:00:02]} 37. Rxf4 {[%clk 0:00:24]}  Rxc2 {[%clk 0:00:02]} 38. Bxg6+ {[%clk 0:00:25]}  Qxg6 {[%clk 0:00:02]} 39. Rxg6 {[%clk 0:00:24]}  Rc1+ {[%clk 0:00:02]} 40. Kd2 {[%clk 0:00:25]}  Rxg6 {[%clk 0:00:03]} 41. Rf7+ {[%clk 0:00:26]}  Kxh6 {[%clk 0:00:03]} 42. Rb7 {[%clk 0:00:26]}  Rg2+ {[%clk 0:00:03]} 43. Ke3 {[%clk 0:00:27]}  Re1+ {[%clk 0:00:04]} 44. Kf4 {[%clk 0:00:28]}  Be5+ {[%clk 0:00:04]} 45. Kf5 {[%clk 0:00:28]}  Rg5+ {[%clk 0:00:04]} 46. Ke6 {[%clk 0:00:28]}  Bf4+ {[%clk 0:00:05]} 47. Kf6 {[%clk 0:00:27]}  Be5+ {[%clk 0:00:05]} 48. Ke6 {[%clk 0:00:27]}  Rg6+ {[%clk 0:00:05]} 49. Kf5 {[%clk 0:00:28]}  Rf6+ {[%clk 0:00:05]} 50. Kg4 {[%clk 0:00:28]}  Rg1+ {[%clk 0:00:05]} 51. Kh3 {[%clk 0:00:28]}  Rxf3+ {[%clk 0:00:05]} 52. Kh4 {[%clk 0:00:28]}  Rf4+ {[%clk 0:00:04]} 53. Kh3 {[%clk 0:00:29]}  Ra1 {[%clk 0:00:03]} 54. Rb3 {[%clk 0:00:16]}  Rf6 {[%clk 0:00:03]} 55. Rg3 {[%clk 0:00:17]}  Bxg3 {[%clk 0:00:03]} 56. Kg4 {[%clk 0:00:17]}  Be5 {[%clk 0:00:03]} 57. Kh4 {[%clk 0:00:18]}  Rg6 {[%clk 0:00:03]} 58. Kh3 {[%clk 0:00:18]}  Rh1# {[%clk 0:00:03]} 0-1


[Site "https://www.chess.com"]

[Event "Titled Tuesday Blitz April 26 Early 2022"]
[White "Safarli, Eltaj"]
[Black "Richter, Nils"]
[WhiteFideId "13402129"]
[BlackFideId "12990809"]
[WhiteElo "2634"]
[BlackElo "2243"]
[Result "1-0"]
[Round "01"]
[TimeControl "180+1"]
[Date "2022.04.26"]
[WhiteClock "0:01:48"]
[BlackClock "0:01:38"]

1. e4 {[%clk 0:02:59]}  e6 {[%clk 0:03:00]} 2. d4 {[%clk 0:02:58]}  d5 {[%clk 0:03:01]} 3. exd5 {[%clk 0:02:58]}  exd5 {[%clk 0:03:01]} 4. c4 {[%clk 0:02:59]}  Nf6 {[%clk 0:03:01]} 5. Nc3 {[%clk 0:02:59]}  Bb4 {[%clk 0:03:00]} 6. Bd3 {[%clk 0:03:00]}  O-O {[%clk 0:02:59]} 7. Ne2 {[%clk 0:03:00]}  dxc4 {[%clk 0:02:58]} 8. Bxc4 {[%clk 0:03:01]}  Nbd7 {[%clk 0:02:59]} 9. O-O {[%clk 0:03:01]}  Nb6 {[%clk 0:02:59]} 10. Bb3 {[%clk 0:03:01]}  Re8 {[%clk 0:02:57]} 11. Bg5 {[%clk 0:02:58]}  h6 {[%clk 0:02:56]} 12. Bh4 {[%clk 0:02:56]}  Be6 {[%clk 0:02:57]} 13. d5 {[%clk 0:02:52]}  Bf5 {[%clk 0:02:47]} 14. Qd4 {[%clk 0:02:48]}  Bd6 {[%clk 0:02:40]} 15. Bxf6 {[%clk 0:02:32]}  Qxf6 {[%clk 0:02:40]} 16. Qxf6 {[%clk 0:02:32]}  gxf6 {[%clk 0:02:41]} 17. Ng3 {[%clk 0:02:33]}  Bg6 {[%clk 0:02:40]} 18. f4 {[%clk 0:02:30]}  Bd3 {[%clk 0:02:38]} 19. Rf3 {[%clk 0:02:28]}  Bc4 {[%clk 0:02:36]} 20. Nf5 {[%clk 0:02:28]}  Bf8 {[%clk 0:02:33]} 21. Rg3+ {[%clk 0:02:18]}  Kh8 {[%clk 0:02:33]} 22. Rd1 {[%clk 0:02:16]}  Bxb3 {[%clk 0:02:32]} 23. axb3 {[%clk 0:02:15]}  Rad8 {[%clk 0:02:31]} 24. Rgd3 {[%clk 0:02:10]}  a6 {[%clk 0:02:31]} 25. Kf2 {[%clk 0:02:09]}  Kh7 {[%clk 0:02:26]} 26. Kf3 {[%clk 0:02:08]}  h5 {[%clk 0:02:26]} 27. Ne4 {[%clk 0:02:07]}  Nd7 {[%clk 0:02:21]} 28. Rc1 {[%clk 0:02:05]}  Rc8 {[%clk 0:02:19]} 29. Rdc3 {[%clk 0:02:04]}  Nb6 {[%clk 0:02:04]} 30. Nxf6+ {[%clk 0:02:02]}  Kg6 {[%clk 0:02:03]} 31. Nxe8 {[%clk 0:02:02]}  Kxf5 {[%clk 0:02:00]} 32. Nxc7 {[%clk 0:01:59]}  Bd6 {[%clk 0:01:58]} 33. Nb5 {[%clk 0:01:57]}  Rxc3+ {[%clk 0:01:53]} 34. Nxc3 {[%clk 0:01:58]}  Bxf4 {[%clk 0:01:51]} 35. Rf1 {[%clk 0:01:57]}  h4 {[%clk 0:01:46]} 36. g4+ {[%clk 0:01:51]}  hxg3 {[%clk 0:01:47]} 37. hxg3 {[%clk 0:01:52]}  Be5 {[%clk 0:01:48]} 38. Rd1 {[%clk 0:01:47]}  Nc8 {[%clk 0:01:41]} 39. Ne4 {[%clk 0:01:47]}  Kg6 {[%clk 0:01:39]} 40. d6 {[%clk 0:01:47]}  f5 {[%clk 0:01:38]} 41. d7 {[%clk 0:01:47]}  fxe4+ {[%clk 0:01:38]} 42. Kxe4 {[%clk 0:01:48]} 1-0


[Site "https://www.chess.com"]

[Event "Titled Tuesday Blitz April 26 Early 2022"]
[White "Sailer, Mike"]
[Black "Dauner, Benedikt"]
[WhiteFideId "2012901"]
[BlackFideId "16225899"]
[WhiteElo "2109"]
[BlackElo "2230"]
[Result "0-1"]
[Round "01"]
[TimeControl "180+1"]
[Date "2022.04.26"]
[WhiteClock "0:00:11"]
[BlackClock "0:00:54"]

1. Nf3 {[%clk 0:02:59]}  d5 {[%clk 0:02:59]} 2. d4 {[%clk 0:03:00]}  Nf6 {[%clk 0:02:58]} 3. Bf4 {[%clk 0:03:00]}  c5 {[%clk 0:02:57]} 4. e3 {[%clk 0:03:01]}  Nc6 {[%clk 0:02:56]} 5. Nc3 {[%clk 0:03:01]}  Bf5 {[%clk 0:02:52]} 6. Be2 {[%clk 0:02:59]}  e6 {[%clk 0:02:51]} 7. O-O {[%clk 0:02:55]}  Be7 {[%clk 0:02:50]} 8. h3 {[%clk 0:02:55]}  h6 {[%clk 0:02:49]} 9. Ne5 {[%clk 0:02:51]}  O-O {[%clk 0:02:46]} 10. Nxc6 {[%clk 0:02:47]}  bxc6 {[%clk 0:02:46]} 11. Na4 {[%clk 0:02:33]}  cxd4 {[%clk 0:02:43]} 12. exd4 {[%clk 0:02:33]}  Qa5 {[%clk 0:02:43]} 13. c3 {[%clk 0:02:32]}  Ne4 {[%clk 0:02:36]} 14. b4 {[%clk 0:02:24]}  Qd8 {[%clk 0:02:33]} 15. f3 {[%clk 0:02:16]}  Nf6 {[%clk 0:02:27]} 16. Nc5 {[%clk 0:02:12]}  Nh5 {[%clk 0:02:18]} 17. Bh2 {[%clk 0:02:11]}  Bh4 {[%clk 0:02:16]} 18. Ba6 {[%clk 0:02:03]}  Ng3 {[%clk 0:02:12]} 19. Re1 {[%clk 0:01:52]}  Qg5 {[%clk 0:02:09]} 20. Bb7 {[%clk 0:01:39]}  Rad8 {[%clk 0:02:01]} 21. Bxc6 {[%clk 0:01:38]}  Bxh3 {[%clk 0:02:00]} 22. Bxg3 {[%clk 0:01:23]}  Qxg3 {[%clk 0:01:53]} 23. Re2 {[%clk 0:01:21]}  Bf5 {[%clk 0:01:48]} 24. Nd7 {[%clk 0:01:04]}  Rfe8 {[%clk 0:01:36]} 25. Ne5 {[%clk 0:01:00]}  Re7 {[%clk 0:01:32]} 26. Bb5 {[%clk 0:00:54]}  Rc7 {[%clk 0:01:28]} 27. Qd2 {[%clk 0:00:36]}  Bg5 {[%clk 0:01:24]} 28. Qb2 {[%clk 0:00:33]}  Bf4 {[%clk 0:01:18]} 29. Bd3 {[%clk 0:00:31]}  Qh2+ {[%clk 0:01:03]} 30. Kf2 {[%clk 0:00:32]}  Bxe5 {[%clk 0:01:02]} 31. dxe5 {[%clk 0:00:11]}  Bxd3 {[%clk 0:01:01]} 32. Re3 {[%clk 0:00:11]}  Bg6 {[%clk 0:00:54]} 0-1


[Site "https://www.chess.com"]

[Event "Titled Tuesday Blitz April 26 Early 2022"]
[White "Sargsyan, Anna M."]
[Black "Mihailidis, Anastasios"]
[WhiteFideId "13308130"]
[BlackFideId "4205588"]
[WhiteElo "2271"]
[BlackElo "2312"]
[Result "1-0"]
[Round "01"]
[TimeControl "180+1"]
[Date "2022.04.26"]
[WhiteClock "0:01:21"]
[BlackClock "0:00:17"]

1. d4 {[%clk 0:02:58]}  d5 {[%clk 0:02:59]} 2. c4 {[%clk 0:02:57]}  e6 {[%clk 0:02:59]} 3. Nf3 {[%clk 0:02:56]}  Nf6 {[%clk 0:02:59]} 4. Nc3 {[%clk 0:02:57]}  Be7 {[%clk 0:03:00]} 5. Bf4 {[%clk 0:02:56]}  O-O {[%clk 0:02:59]} 6. e3 {[%clk 0:02:56]}  Nbd7 {[%clk 0:02:57]} 7. h3 {[%clk 0:02:55]}  c5 {[%clk 0:02:56]} 8. cxd5 {[%clk 0:02:54]}  exd5 {[%clk 0:02:51]} 9. dxc5 {[%clk 0:02:54]}  Nxc5 {[%clk 0:02:50]} 10. Be2 {[%clk 0:02:55]}  Be6 {[%clk 0:02:50]} 11. O-O {[%clk 0:02:55]}  Nce4 {[%clk 0:02:50]} 12. Rc1 {[%clk 0:02:53]}  Nxc3 {[%clk 0:02:49]} 13. Rxc3 {[%clk 0:02:53]}  Rc8 {[%clk 0:02:45]} 14. Rxc8 {[%clk 0:02:52]}  Qxc8 {[%clk 0:02:46]} 15. Nd4 {[%clk 0:02:52]}  Qc5 {[%clk 0:02:39]} 16. Qb3 {[%clk 0:02:48]}  b6 {[%clk 0:02:34]} 17. Qa4 {[%clk 0:02:43]}  a5 {[%clk 0:02:22]} 18. a3 {[%clk 0:02:37]}  Rc8 {[%clk 0:02:17]} 19. Ba6 {[%clk 0:02:34]}  Ra8 {[%clk 0:02:10]} 20. Bb7 {[%clk 0:02:30]}  Rd8 {[%clk 0:01:56]} 21. b4 {[%clk 0:02:01]}  axb4 {[%clk 0:01:53]} 22. axb4 {[%clk 0:02:01]}  Qxb4 {[%clk 0:01:51]} 23. Qxb4 {[%clk 0:01:55]}  Bxb4 {[%clk 0:01:52]} 24. Nc6 {[%clk 0:01:55]}  Rd7 {[%clk 0:01:16]} 25. Bc8 {[%clk 0:01:54]}  Bc5 {[%clk 0:01:12]} 26. Bxd7 {[%clk 0:01:50]}  Bxd7 {[%clk 0:01:12]} 27. Ne5 {[%clk 0:01:50]}  Be8 {[%clk 0:01:09]} 28. Ra1 {[%clk 0:01:50]}  Kf8 {[%clk 0:01:07]} 29. Nd3 {[%clk 0:01:47]}  Be7 {[%clk 0:01:05]} 30. Ra8 {[%clk 0:01:43]}  Nd7 {[%clk 0:00:56]} 31. Bc7 {[%clk 0:01:35]}  f6 {[%clk 0:00:52]} 32. Nf4 {[%clk 0:01:35]}  Kf7 {[%clk 0:00:48]} 33. Nxd5 {[%clk 0:01:35]}  b5 {[%clk 0:00:45]} 34. Ba5 {[%clk 0:01:27]}  Bd6 {[%clk 0:00:22]} 35. Ra6 {[%clk 0:01:21]}  Ke6 {[%clk 0:00:20]} 36. Nc7+ {[%clk 0:01:21]}  Ke7 {[%clk 0:00:20]} 37. Nxe8 {[%clk 0:01:21]}  Kxe8 {[%clk 0:00:18]} 38. Rxd6 {[%clk 0:01:22]}  Ke7 {[%clk 0:00:19]} 39. Bb4 {[%clk 0:01:20]}  Ke8 {[%clk 0:00:17]} 40. Rd5 {[%clk 0:01:20]}  Ne5 {[%clk 0:00:17]} 41. Rxb5 {[%clk 0:01:21]}  Kf7 {[%clk 0:00:18]} 42. Rb7+ {[%clk 0:01:21]}  Kg6 {[%clk 0:00:18]} 43. f4 {[%clk 0:01:21]}  Nd3 {[%clk 0:00:18]} 44. Bf8 {[%clk 0:01:21]}  Nc5 {[%clk 0:00:17]} 1-0


[Site "https://www.chess.com"]